Cogmind - Beta 11 @@@ ROGUE MODE // 2022.03.23 @ 01:34:31 Player: lumberblack Result: Destroyed by Y-45 Defender with Heavy Assault Rifle Performance ------------- Evolutions (2) 1000 Regions Visited (6) 1200 Robots Destroyed (8) 40 Value Destroyed (71) 71 Prototype IDs (24) 480 Alien Tech Used (0) 0 Bonus (570) 570 TOTAL SCORE: 3361 Bonus ------- Pacifist 270 Aligned with FarCom 300 Cogmind --------- Core Integrity 0/550 Matter 286/300 Energy 99/100 System Corruption 2% Temperature Cool (0) Movement Core (50) Location -8/Storage Parts ------- > --- POWER (1) -------- (None) > --- PROPULSION (4) --- (None) > --- UTILITY (4) ------ Advanced Visual Processing Unit Improved Signal Interpreter Improved Signal Interpreter Propulsion Shielding > --- WEAPON (2) ------- (None) > --- INVENTORY (5) ---- High-capacity Battery (250) Compact Matter Pod (150) EMP Blaster Mini Grenade Launcher Shock Maul Peak State ------------ > --- POWER ------------ (None) > --- PROPULSION ------- Light Treads Light Treads Advanced Treads Advanced Treads > --- UTILITY ---------- Advanced Visual Processing Unit Improved Signal Interpreter Improved Terrain Scanner Trap Reconfigurator > --- WEAPON ----------- Mini Grenade Launcher > --- INVENTORY -------- High-capacity Battery Compact Matter Pod Improved Signal Interpreter EMP Blaster [Rating: 28] Favorites ----------- Power Ion Engine Engine Ion Engine Propulsion Light Treads Treads Light Treads Leg Aluminum Leg Utility Trap Reconfigurator Device Trap Reconfigurator Storage Small Storage Unit Processor Improved Targeting Computer Protection Light Armor Plating Weapon EM Pulse Gun Energy Gun EM Pulse Gun Ballistic Gun Assault Rifle Launcher Mini Grenade Launcher Impact Weapon Shock Maul Build | -11 -10 -10 -10 -9 -8 -8 ------- Run | Scr Mat Min Exi Min Mat Sto Slots Evolved 4 | . . . . . 4 . Power . | . . . . . . . Propulsion 2 | . . . . . 2 . Utility 2 | . . . . . 2 . Weapon . | . . . . . . . Parts Attached 17 | 2 3 . 1 . 4 7 Power . | . . . . . . . Engine . | . . . . . . . Core . | . . . . . . . Reactor . | . . . . . . . Propulsion 5 | 2 1 . . . 2 . Treads 5 | 2 1 . . . 2 . Leg . | . . . . . . . Wheel . | . . . . . . . Hover . | . . . . . . . Flight . | . . . . . . . Utility 10 | . 2 . 1 . 2 5 Device 3 | . . . 1 . 1 1 Storage . | . . . . . . . Processor 5 | . 1 . . . 1 3 Hackware . | . . . . . . . Protection 2 | . 1 . . . . 1 Artifact . | . . . . . . . Weapon 2 | . . . . . . 2 Energy Gun . | . . . . . . . Energy Cannon . | . . . . . . . Ballistic Gun . | . . . . . . . Ballistic Cannon . | . . . . . . . Launcher 1 | . . . . . . 1 Special Weapon . | . . . . . . . Impact Weapon 1 | . . . . . . 1 Slashing Weapon . | . . . . . . . Piercing Weapon . | . . . . . . . Special Melee Weapon . | . . . . . . . Unidentified Prototypes 1 | . . . . . . 1 Parts Lost 6 | . . . . . . 6 Power . | . . . . . . . Propulsion 4 | . . . . . . 4 Utility 2 | . . . . . . 2 Weapon . | . . . . . . . Highest Loss Streak 4 | . . . . . . 4 To Critical Strikes . | . . . . . . . Average Slot Usage (%) 57 | . 42 57 57 57 64 60 Treads 27 | . 28 28 28 28 29 25 Device 12 | . . . 7 14 16 15 Processor 15 | . 3 14 14 14 18 19 Protection 2 | . 10 14 7 . . . Naked Turns . | . . . . . . . Heaviest Build 3 | . 3 3 3 1 3 3 Greatest Support 84 | 3 3 3 3 3 3 84 Greatest Overweight (x) . | . . . . . . . Average Overweight (x) . | . . . . . . . Largest Inventory Capacity 8 | 8 5 5 5 5 5 5 Average Capacity 5 | 8 5 5 5 5 5 5 Most Carried 6 | 6 5 5 5 5 5 5 Average Carried 4 | 3 . 4 4 4 5 4 Final Capacity 5 | 5 5 5 5 5 5 5 Final Carried 5 | . 5 5 5 5 5 5 Class Distribution -------------------- 65% | Mutant 34% | Scout Dominant Class ---------------- Mutant | -10/Materials Mutant | -10/Mines Mutant | -10/Exiles Mutant | -9/Mines Mutant | -8/Materials Scout | -8/Storage Resources | -11 -10 -10 -10 -9 -8 -8 ----------- Run | Scr Mat Min Exi Min Mat Sto Matter Collected 435 | 188 . 174 . 10 . 63 Remotely . | . . . . . . . Salvage Created 68 | . . . . . . 68 Parts 12 | . . . . . . 12 Haulers Intercepted . | . . . . . . . Recyclers Shooed . | . . . . . . . Parts Field Recycled . | . . . . . . . Retrieved Matter . | . . . . . . . Parts Self-Destructed . | . . . . . . . Prevented . | . . . . . . . Kills | -11 -10 -10 -10 -9 -8 -8 ------- Run | Scr Mat Min Exi Min Mat Sto Combat Hostiles Destroyed 7 | . . . . . . 7 AOE 7 | . . . . . . 7 Classes Destroyed 2 | . . . . . . 2 Worker 1 | . . . . . . 1 Swarmer 7 | . . . . . . 7 Best Kill Streak 8 | . . . . . . 8 Combat Bots Only 7 | . . . . . . 7 Max Kills in Single Turn 4 | . . . . . . 4 Gunslinging . | . . . . . . . Exploded 3 | . . . . . . 3 Melee . | . . . . . . . Uniques/NPCs Destroyed . | . . . . . . . Combat | -11 -10 -10 -10 -9 -8 -8 -------- Run | Scr Mat Min Exi Min Mat Sto Damage Taken 1332 | . . . . . 48 1284 Core 557 | . . . . . . 557 Absorbed by Shields . | . . . . . . . Core Remaining (%) 100 | 100 . . . 100 . . Volleys Fired 3 | . . . . . . 3 Largest 1 | . . . . . . 1 Hottest 30 | . . . . . . 30 Shots Fired 3 | . . . . . . 3 Gun . | . . . . . . . Cannon . | . . . . . . . Launcher 3 | . . . . . . 3 Special . | . . . . . . . Kinetic . | . . . . . . . Thermal . | . . . . . . . Explosive 3 | . . . . . . 3 Electromagnetic . | . . . . . . . Robot Hit Streak 1 | . . . . . . 1 Robot Miss Streak 2 | . . . . . . 2 Penetration Max . | . . . . . . . Secondary Targets . | . . . . . . . Shots Hit Robots 1 | . . . . . . 1 Core Hits 19 | . . . . . . 19 Critical Kills . | . . . . . . . Critical Parts Destroyed . | . . . . . . . Critical Strikes . | . . . . . . . Melee Attacks . | . . . . . . . Impact . | . . . . . . . Slashing . | . . . . . . . Piercing . | . . . . . . . Sneak Attacks . | . . . . . . . Combat Hostiles . | . . . . . . . Follow-up Attacks . | . . . . . . . Damage Inflicted 724 | . . . . . 2 722 Guns . | . . . . . . . Cannons . | . . . . . . . Explosions 667 | . . . . . . 667 Melee . | . . . . . . . Ramming 57 | . . . . . 2 55 Kinetic . | . . . . . . . Thermal . | . . . . . . . Explosive 667 | . . . . . . 667 Electromagnetic . | . . . . . . . Impact . | . . . . . . . Slashing . | . . . . . . . Piercing . | . . . . . . . Highest Corruption 2 | . . . . . . 2 Average Corruption 2 | . . . . . . 2 Corruption Purged . | . . . . . . . Corruption Blocked . | . . . . . . . Effects 1 | . . . . . . 1 Heat Flow Errors 1 | . . . . . . 1 Overload Shots . | . . . . . . . Overflow Damage 9 | . . . . . . 9 Projectiles . | . . . . . . . Explosions 9 | . . . . . . 9 Melee . | . . . . . . . Knockbacks . | . . . . . . . Impact . | . . . . . . . Kinetic . | . . . . . . . Secondary . | . . . . . . . Self-Inflicted Damage 26 | . . . . . 1 25 Shots . | . . . . . . . Rammed 11 | . . . . . 1 10 Targets Rammed 11 | . . . . . 1 10 Kicked . | . . . . . . . Crushed . | . . . . . . . Highest Temperature 218 | . . . . . . 218 Average Temperature 119 | . . . . . . 119 Received Heat Transfer 495 | . . . . . 18 477 Siege Activations . | . . . . . . . Robots Corrupted . | . . . . . . . Combat Hostiles . | . . . . . . . Parts Fried . | . . . . . . . Impact Corruptions . | . . . . . . . Robots Melted . | . . . . . . . Combat Hostiles . | . . . . . . . Parts Melted . | . . . . . . . Heat Transferred . | . . . . . . . Parts Sabotaged . | . . . . . . . Parts Stolen . | . . . . . . . Parts Stripped . | . . . . . . . Power Chain Reactions . | . . . . . . . Missiles Intercepted . | . . . . . . . Alert | -11 -10 -10 -10 -9 -8 -8 ------- Run | Scr Mat Min Exi Min Mat Sto Peak Influence 463 | . . . . . 15 463 Initial . | . . . . . . . Average 65 | . . . . . . 132 Maximum Alert Level 2 | . . . . . . 2 Low Security (%) 81 | 100 100 100 . 100 100 62 Level 1 11 | . . . . . . 23 Level 2 6 | . . . . . . 13 Level 3 . | . . . . . . . Level 4 . | . . . . . . . Level 5 . | . . . . . . . High Security . | . . . . . . . Max Security . | . . . . . . . Squads Dispatched 7 | . 1 . . . 1 5 Investigation 1 | . . . . . 1 . Extermination . | . . . . . . . Reinforcement 1 | . 1 . . . . . Assault 2 | . . . . . . 2 Garrison 3 | . . . . . . 3 Intercept . | . . . . . . . Searches Triggered . | . . . . . . . Construction Impeded . | . . . . . . . Haulers Reinforced . | . . . . . . . Active Scanning Responses . | . . . . . . . Cargo Convoy Interrupts . | . . . . . . . Stealth | -11 -10 -10 -10 -9 -8 -8 --------- Run | Scr Mat Min Exi Min Mat Sto Distress Signals 4 | . . . . 1 . 3 Communications Jammed . | . . . . . . . Distress Signals . | . . . . . . . Times Spotted 46 | . 1 . . 1 1 43 Peak Tracking Total 24 | . 2 . . 4 1 24 Tactical Retreats 5 | . . . . 1 . 4 Traps | -11 -10 -10 -10 -9 -8 -8 ------- Run | Scr Mat Min Exi Min Mat Sto Traps Triggered 1 | . 1 . . . . . Indirectly . | . . . . . . . Trap Hack Attempts . | . . . . . . . Triggered . | . . . . . . . Disarmed . | . . . . . . . Reprogrammed . | . . . . . . . Reused . | . . . . . . . Traps Extracted . | . . . . . . . Installed . | . . . . . . . Triggered . | . . . . . . . Exploded 1 | . . . 1 . . . Machines | -11 -10 -10 -10 -9 -8 -8 ---------- Run | Scr Mat Min Exi Min Mat Sto Machines Disabled . | . . . . . . . Max in Single Turn . | . . . . . . . Machines Sabotaged . | . . . . . . . Garrisons Compromised . | . . . . . . . Overloaded Fab Kills . | . . . . . . . Hacking | -11 -10 -10 -10 -9 -8 -8 --------- Run | Scr Mat Min Exi Min Mat Sto Machines Accessed 10 | . 3 . 1 . 2 4 Terminals 9 | . 3 . . . 2 4 Fabricators . | . . . . . . . Repair Stations . | . . . . . . . Recycling Units . | . . . . . . . Scanalyzers . | . . . . . . . Garrison Access . | . . . . . . . Total Hacks 26 | . 7 . 1 . 7 11 Successful 8 | . 1 . 1 . 1 5 Failed 18 | . 6 . . . 6 6 Catastrophic 5 | . 1 . . . 2 2 Database Lockouts . | . . . . . . . Manual 12 | . 2 . 1 . 3 6 Terminals 25 | . 7 . . . 7 11 Fabricators . | . . . . . . . Repair Stations . | . . . . . . . Recycling Units . | . . . . . . . Scanalyzers . | . . . . . . . Garrison Access . | . . . . . . . Terminal Hacks 7 | . 1 . 1 . 1 4 Open Door 1 | . . . . . . 1 Terminal Index 1 | . 1 . . . . . Unreport Threat 1 | . . . . . 1 . Locate Traps 1 | . . . . . . 1 Zone Layout 2 | . . . . . . 2 EX-Prototype ID Bank 1 | . . . 1 . . . Fabricator Hacks . | . . . . . . . Repair Station Hacks . | . . . . . . . Recycling Unit Hacks . | . . . . . . . Scanalyzer . | . . . . . . . Garrison Access Hacks . | . . . . . . . Unauthorized Hacks 1 | . . . . . . 1 Terminals 1 | . . . . . . 1 Disrupt 1 | . . . . . . 1 Fabricators . | . . . . . . . Repair Stations . | . . . . . . . Recycling Units . | . . . . . . . Scanalyzers . | . . . . . . . Garrison Access . | . . . . . . . Data Cores Recovered . | . . . . . . . Used . | . . . . . . . Hacking Detections 10 | . 3 . . . 2 5 Full Trace Events 1 | . . . . . 1 . Feedback Events . | . . . . . . . Feedback Blocked . | . . . . . . . Robot Schematics Acquired . | . . . . . . . Robots Built . | . . . . . . . Authchips . | . . . . . . . Time . | . . . . . . . Total Robot Build Rating . | . . . . . . . Part Schematics Acquired . | . . . . . . . Parts Built . | . . . . . . . Authchips . | . . . . . . . Time . | . . . . . . . Total Part Build Rating . | . . . . . . . Parts Repaired . | . . . . . . . Time . | . . . . . . . Parts Recycled . | . . . . . . . Recycled Matter . | . . . . . . . Retrieved Matter . | . . . . . . . Retrieved Components . | . . . . . . . Parts Scanalyzed . | . . . . . . . Part Schematics Acquired . | . . . . . . . Parts Damaged . | . . . . . . . Bothacking | -11 -10 -10 -10 -9 -8 -8 ------------ Run | Scr Mat Min Exi Min Mat Sto Used RIF Installer . | . . . . . . . Robots Hacked . | . . . . . . . Non-combat . | . . . . . . . Combat . | . . . . . . . Robot Hacks Applied . | . . . . . . . Relay Couplers Released . | . . . . . . . Fabnet Peak Effective % . | . . . . . . . Robots Rewired . | . . . . . . . Allies Hacked . | . . . . . . . Hacks Repelled . | . . . . . . . Allies | -11 -10 -10 -10 -9 -8 -8 -------- Run | Scr Mat Min Exi Min Mat Sto Total Allies 4 | . . . . 2 . 2 Largest Group 2 | . . . . 2 . 2 Highest-Rated Group 62 | . . . . 46 . 62 Highest-Rated Ally 31 | . . . . 31 . 31 Total Orders . | . . . . . . . Ally Attacks 11 | . . . . . . 11 Total Damage 186 | . . . . . . 186 Kills . | . . . . . . . Allies Corrupted . | . . . . . . . Allies Melted . | . . . . . . . Intel | -11 -10 -10 -10 -9 -8 -8 ------- Run | Scr Mat Min Exi Min Mat Sto Robot Analysis Total . | . . . . . . . Derelict Logs Recovered 1 | . . . . 1 . . Drone Launches . | . . . . . . . Drone Recoveries . | . . . . . . . Exploration | -11 -10 -10 -10 -9 -8 -8 ------------- Run | Scr Mat Min Exi Min Mat Sto Turns Passed 785 | 7 75 23 116 164 70 330 Spaces Moved 1041 | 1 129 39 224 234 86 328 Core 1035 | 1 129 39 224 234 86 322 Treads 6 | . . . . . . 6 Legs . | . . . . . . . Wheels . | . . . . . . . Hover . | . . . . . . . Flight . | . . . . . . . Fastest Speed 50 | 50 50 50 50 50 50 50 Average Speed 50 | 50 50 50 50 50 50 51 Slowest Speed 152 | 50 50 50 50 50 50 152 Overloaded Moves . | . . . . . . . Propulsion Burnouts . | . . . . . . . Robots Hopped . | . . . . . . . Cave-ins Triggered . | . . . . . . . Exploration Rate (%) 36 | 2 33 13 59 71 9 69 Regions Visited 6 Branch Regions 4 Pre-discovered Areas . | . . . . . . . Known Exits Taken . | . . . . . . . Unknown Exits Taken 6 | 1 1 1 1 1 1 . Scrap Searched 1 | . . . . 1 . . Spaces Dug . | . . . . . . . Terrain Destroyed 11 | . . . . . . 11 Melee . | . . . . . . . Projectile . | . . . . . . . AOE 11 | . . . . . . 11 Terrain Rammed . | . . . . . . . Walls Destroyed . | . . . . . . . Machines Disabled . | . . . . . . . Actions | -11 -10 -10 -10 -9 -8 -8 --------- Run | Scr Mat Min Exi Min Mat Sto Total 1293 | 12 137 42 227 280 110 485 Wait 196 | . 1 . . 45 20 130 Move 1036 | . 128 38 223 233 86 328 Hop . | . . . . . . . Pick Up 10 | . 5 2 1 1 . 1 Fast Attach 13 | . 3 . 1 . 4 5 Attach 4 | 2 . . . . . 2 Detach 3 | . . . . . . 3 Swap . | . . . . . . . Drop 18 | 10 . 2 2 1 . 3 Fire 3 | . . . . . . 3 Melee . | . . . . . . . Ram 10 | . . . . . . 10 Kick . | . . . . . . . Crush . | . . . . . . . Escape Stasis . | . . . . . . . Rewire . | . . . . . . . Trap . | . . . . . . . Miscellaneous . | . . . . . . . Route ------- -11/Scrapyard -10/Materials -10/Mines -10/Exiles -9/Mines -8/Materials (discovered 2 exits: Fac / *Sto) -8/Storage History --------- Turn | Location | Event 8 | -11/Scrapyard | Discovered new exit (range 2) 8 | -11/Scrapyard | Entered Materials 61 | -10/Materials | Discovered new exit (range 16) 83 | -10/Materials | Entered Mines 104 | -10/Mines | Deemed a non-threat by the Exiles lab entrance 104 | -10/Mines | Discovered new exit (range 5) 106 | -10/Mines | Entered Exiles 119 | -10/Exiles | Met 8R-AWN 128 | -10/Exiles | Met EX-HEX 141 | -10/Exiles | Met EX-BIN 147 | -10/Exiles | Aligned with FarCom system 147 | -10/Exiles | Given EX-Vault access code 159 | -10/Exiles | Opened EX-Vault 164 | -10/Exiles | Found Trap Reconfigurator 176 | -10/Exiles | Warned to stay clear of 0b10 Research branches 182 | -10/Exiles | Exiles lab attacked by MAIN.C 217 | -10/Exiles | Discovered new exit (range 11) 222 | -10/Exiles | Left Exiles lab with Trap Reconfigurator 222 | -10/Exiles | Entered Mines 256 | -9/Mines | Learned location of 1 exit from Materials 303 | -9/Mines | Build established: Mutant 311 | -9/Mines | Assembled infested the area 382 | -9/Mines | Discovered new exit (range 7) 386 | -9/Mines | Entered Materials 386 | -8/Materials | Evolved 4 slots: Propulsion x2, Utility x2 387 | -8/Materials | Identified exit to Factory 448 | -8/Materials | Discovered new exit (range 16) 456 | -8/Materials | Entered Storage 463 | -8/Storage | Met a pair of Derelict thieves 495 | -8/Storage | Garrison activated, responded to threat 681 | -8/Storage | Destroyed 7 combat bots 724 | -8/Storage | Lost 4 parts (4n) 758 | -8/Storage | Core integrity fell below 50% 762 | -8/Storage | Core integrity fell below 20% 786 | -8/Storage | Destroyed by Y-45 Defender with Heavy Assault Rifle Last Messages --------------- 00728_ Connecting with Terminal... 00733_ Slammed into A-02 Transporter. 00733_ Destabilizing: System interference. 00733_ Adv. Visual Processing Unit temporarily disabled. 00738_ Imp. Terrain Scanner destroyed. 00739_ Connecting with Door Terminal... >>Open(Door) Sealed Heavy Doors opened. 00740_ Acquired Prototype Impact Weapon. 00740_ Identified Shock Maul. 00750_ Connecting with Door Terminal... 00753_ Trap Reconfigurator destroyed. 00756_ Slammed into Y-45 Defender. 00757_ Critical hit (Burn: +37). 00758_ Slammed into Y-45 Defender. 00758_ Imp. Signal Interpreter broken. 00758_ Destabilizing: Short circuit. 00759_ Slammed into Y-45 Defender. 00760_ Slammed into G-47 Trooper. 00771_ Acquired Propulsion Shielding. Map ----- +----------------------------------------------------+ | "######??# # #???????????# #?????? | | T"????????#### # #?????#?#???# #?????? | | ""???????????# # #??????#????# #?????? | | ##??#????????# =# #???????????# #?????? | | ??????######## %# #???????????# #?????? | | ???#???? # # #?########### # ????? | | ????????? # %##+##+#### # #?????? | | ?????????? # [ + """ # #???? ? | | ???????????" # #### """" " # #?????? | | ???????????" + Y #?# " "" " + +?????? | | ???????????" # ##?# " "" " # #???? ? | | ????#??????" # ##### #??# " """" # #?????? | | ????# """ # ##### #??# """ # #?????? | | #?### # #???#k#??# # #?????? | | ### ########## #??## ############## #?????? | | # #########+#### ############ #?? ??? | | + # ## #?????? | | # """" # """ """ T# T #?????? | | # """" # """ """ ## ### ######## #?????# | | # """" # """ """ ### ####+######## #?#???? | | # """" # """ !### #w # #?????? | | # # """ ## + # #?????? | | # # ### # """ """ # #?????? | | ######+#######+########## # """ """ # #?????? | | #???# ggYg # """ """ # #?????? | | #???# Y @ # # #?????? | | #???# #################+##########Y#### #?????? | | #???# #??? ## #???#??#######g ##????? | | ???## ##?? ## "" #??????#####T# #?????? | | #### #?? ## """#??????## " + #?????? | | T" #? ## R"#??????## " # #?????? | | " +?? " ## """#??????## " # g #?????? | | #+## #??R" ## #??????####### #?????? | | ######??????????#!!! #?????????????g ??????? | | #???????????????#!!! Y#????????????? ??????? | | #???????????????#!! ??????????????????????? | | #???????????????# ] ##?????????????????????? | | #???????????????# #??????????????????????? | | #???????#???????# #??????????????????????? | | #???????????????# #??????????????????????? | | = #???????????????##"T"###??????????????????????? | | #?????????????????###?????????????????????????? | | #?????????????????????????????????????????????? | | #?????????????????????????????????????????????? | | ####?????????????????????????????????????????????? | | ?????????????????????????????????????????????????? | | ?????????????????????????????????????????????????? | | ?????????????????????????????????????????????????? | | ?????????????????????????????????????????????????? | | ?????????????????????????????????????????????????? | +----------------------------------------------------+ Best States ------------- Heat Dissipation 31 Energy Generation 5 Energy Capacity 100 Matter Stores 300 Matter Capacity 300 Sight Range 20 Terrain Scan Range 16 Terrain Scan Density 85 Armor Coverage 150 Propulsion Shielding 33 Evasion (%) 50 Targeting Accuracy 6 Recoil Reduction 4 Item Schematics ----------------- None Robot Schematics ------------------ None Fabricated ------------ Nothing Alien Tech Used ----------------- None Achievements -------------- None Challenges ------------ None Game ------ Seed HellfireAntimissileRefractor Manual? 0 Play Time 00:13:48 Cumulative 366.2 hours Start 2022.03.23 @ 01:19:30 End 2022.03.23 @ 01:34:31 Sessions 1 Manual Loads 0 Difficulty Rogue Special Mode None Game No. 319 Rogue 319 Adventurer 0 Explorer 0 Win Type - Total 6 Types 5/0/1/0/0/0/0/0/0 Lore% 54 Gallery% 74 Achievement% 64 Wizard Run 0 Options --------- ASCII 0 Keyboard 0 Movement Numpad Keybinds 0 Fullscreen 2 Font 18/TerminusBold Map View 76x50 Tactical HUD 1 Map Filters NONE Filters NONE Steam 1 RUN: 80792c87-2c56-48c6-873c-108daf9dfde1